fUST/lending_fUST_20240605
["ID","MTS","AMOUNT","RATE_DAILY","PERIOD"]
[328603607,1717601448172,-500.0,0.00022465,2]
[328603608,1717601448183,-500.0,0.00022465,2]
[328603609,1717601448193,-500.0,0.00022465,2]
[328603610,1717601448202,-500.0,0.00022465,2]
[328603611,1717601448211,-500.0,0.00022465,2]
[328603612,1717601448220,-500.0,0.00022465,2]
[328603613,1717601448230,-346.19,0.00022465,2]
[328603614,1717601448240,-500.0,0.00022465,2]
[328603615,1717601448251,-632.17,0.00022465,2]
[328603616,1717601448260,-811.82,0.00022465,2]
[328603617,1717601448269,-616.25,0.00022465,2]
[328603618,1717601448278,-500.0,0.00022465,2]
[328603619,1717601448287,-1527.37,0.00022465,2]
[328603620,1717601448296,-500.0,0.00022465,2]
[328603621,1717601448305,-606.02,0.00022465,2]
[328603622,1717601448314,-1110.0,0.00022465,2]
[328603623,1717601448323,-343.87,0.00022465,2]
[328603624,1717601448333,-500.0,0.00022465,2]
[328603625,1717601448341,-930.09,0.00022465,2]
[328603626,1717601448350,-500.0,0.00022465,2]
[328603627,1717601448359,-500.0,0.00022465,2]
[328603628,1717601448369,-500.0,0.00022465,2]
[328603629,1717601448380,-500.0,0.00022465,2]
[328603630,1717601448394,-500.0,0.00022465,2]
[328603631,1717601448403,-464.19,0.00022465,2]
[328603632,1717601448413,-1650.67,0.00022465,2]
[328603633,1717601448423,-198.07,0.00022465,2]
[328603634,1717601448433,-1643.8,0.00022465,2]
[328603635,1717601448442,-500.0,0.00022465,2]
[328603636,1717601448452,-500.0,0.00022465,2]
[328603637,1717601448463,-2328.16,0.00022465,2]
[328603638,1717601448472,-500.0,0.00022465,2]
[328603639,1717601448481,-998.44,0.00022465,2]
[328603640,1717601448492,-500.0,0.00022465,2]
[328603641,1717601448502,-500.0,0.00022465,2]
[328603642,1717601448511,-500.0,0.00022465,2]
[328603643,1717601448521,-500.0,0.00022465,2]
[328603644,1717601448530,-500.0,0.00022465,2]
[328603645,1717601448539,-500.0,0.00022465,2]
[328603646,1717601448548,-616.39,0.00022465,2]
[328603647,1717601448559,-500.0,0.00022465,2]
[328603648,1717601448569,-500.0,0.00022499,2]
[328603649,1717601448579,-153.0,0.0002263,2]
[328603650,1717601448589,-387.62251102,0.00022639,2]
[328603651,1717601448598,-500.0,0.00022738,2]
[328603652,1717601448607,-31869.47514861,0.00022738,2]
[328603653,1717601448617,-500.0,0.00022739,2]
[328603654,1717601448626,-500.0,0.00022739,2]
[328603655,1717601448635,-442.33590089,0.00022739,2]
[328603656,1717601448645,-463.02530794,0.00022739,2]
[328603657,1717601448656,-500.0,0.00022739,2]
[328603658,1717601448666,-500.0,0.00022739,2]
[328603659,1717601448675,-500.0,0.00022739,2]
[328603660,1717601448684,-500.0,0.00022739,2]
[328603661,1717601448693,-500.0,0.00022739,2]
[328603662,1717601448702,-500.0,0.00022739,2]
[328603663,1717601448711,-500.0,0.00022739,2]
[328603664,1717601448721,-500.0,0.00022739,2]
[328603665,1717601448730,-319.31,0.00022739,2]
[328603666,1717601448741,-500.0,0.00022739,2]
[328603667,1717601448750,-500.0,0.00022739,2]
[328603668,1717601448759,-500.0,0.00022739,2]
[328603669,1717601448768,-500.0,0.00022739,2]
[328603670,1717601448777,-500.0,0.00022739,2]
[328603671,1717601448786,-271.62,0.00022739,2]
[328603672,1717601448796,-500.0,0.00022739,2]
[328603673,1717601448805,-500.0,0.00022739,2]
[328603674,1717601448814,-500.0,0.00022739,2]
[328603675,1717601448823,-500.0,0.00022739,2]
[328603676,1717601448832,-538.0,0.00022739,2]
[328603677,1717601448841,-197.95461479,0.00022739,2]
[328603678,1717601448851,-297.60240355,0.00022739,2]
[328603679,1717601448861,-500.0,0.00022739,2]
[328603680,1717601448870,-500.0,0.00022739,2]
[328603681,1717601448880,-500.0,0.00022739,2]
[328603682,1717601448890,-500.0,0.00022739,2]
[328603683,1717601448900,-500.0,0.00022739,2]
[328603684,1717601448909,-811.82,0.00022739,2]
[328603685,1717601448918,-616.25,0.00022739,2]
[328603686,1717601448927,-500.0,0.00022739,2]
[328603687,1717601448937,-1527.37,0.00022739,2]
[328603688,1717601448947,-500.0,0.00022739,2]
[328603689,1717601448956,-1110.0,0.00022739,2]
[328603690,1717601448965,-500.0,0.00022739,2]
[328603691,1717601448975,-930.09,0.00022739,2]
[328603692,1717601448983,-500.0,0.00022739,2]
[328603693,1717601448993,-500.0,0.00022739,2]
[328603694,1717601449003,-500.0,0.00022739,2]
[328603695,1717601449013,-500.0,0.00022739,2]
[328603696,1717601449022,-1650.67,0.00022739,2]
[328603697,1717601449032,-1643.8,0.00022739,2]
[328603698,1717601449041,-500.0,0.00022739,2]
[328603699,1717601449051,-500.0,0.00022739,2]
[328603700,1717601449060,-2328.16,0.00022739,2]
[328603701,1717601449070,-500.0,0.00022739,2]
[328603702,1717601449080,-998.44,0.00022739,2]
[328603703,1717601449089,-500.0,0.00022739,2]
[328603704,1717601449098,-500.0,0.00022739,2]
[328603705,1717601449108,-500.0,0.00022739,2]
[328603706,1717601449117,-500.0,0.00022739,2]
[328603707,1717601449127,-500.0,0.00022739,2]
[328603708,1717601449137,-616.39,0.00022739,2]
[328603709,1717601449146,-500.0,0.00022739,2]
[328603710,1717601449156,-166.666666,0.00022944,2]
[328603711,1717601449165,-500.0,0.00023,2]
[328603712,1717601449174,-500.0,0.00023012,2]
[328603713,1717601449183,-500.0,0.00023013,2]
[328603714,1717601449193,-500.0,0.00023013,2]
[328603715,1717601449202,-500.0,0.00023013,2]
[328603716,1717601449211,-500.0,0.00023013,2]
[328603717,1717601449221,-500.0,0.00023013,2]
[328603718,1717601449231,-500.0,0.00023013,2]
[328603719,1717601449242,-500.0,0.00023013,2]
[328603720,1717601449251,-500.0,0.00023013,2]
[328603721,1717601449260,-500.0,0.00023013,2]
[328603722,1717601449269,-500.0,0.00023013,2]
[328603723,1717601449278,-500.0,0.00023013,2]
[328603724,1717601449288,-500.0,0.00023013,2]
[328603725,1717601449297,-500.0,0.00023013,2]
[328603726,1717601449306,-500.0,0.00023013,2]
[328603727,1717601449315,-500.0,0.00023013,2]
[328603728,1717601449324,-500.0,0.00023013,2]
[328603729,1717601449334,-629.90012117,0.00023013,2]
[328603730,1717601449343,-500.0,0.00023013,2]
[328603731,1717601449352,-538.0,0.00023013,2]
[328603732,1717601449361,-500.0,0.00023013,2]
[328603733,1717601449370,-500.0,0.00023013,2]
[328603734,1717601449380,-500.0,0.00023013,2]
[328603735,1717601449393,-500.0,0.00023013,2]
[328603736,1717601449403,-500.0,0.00023013,2]
[328603737,1717601449412,-811.82,0.00023013,2]
[328603738,1717601449423,-616.25,0.00023013,2]
[328603739,1717601449433,-500.0,0.00023013,2]
[328603740,1717601449443,-1527.37,0.00023013,2]
[328603741,1717601449454,-500.0,0.00023013,2]
[328603742,1717601449464,-1110.0,0.00023013,2]
[328603744,1717601449475,-500.0,0.00023013,2]
[328603745,1717601449484,-930.09,0.00023013,2]
[328603746,1717601449496,-500.0,0.00023013,2]
[328603747,1717601449505,-525.28,0.00023013,2]
[328603748,1717601449514,-500.0,0.00023013,2]
[328603749,1717601449523,-500.0,0.00023013,2]
[328603750,1717601449532,-1650.67,0.00023013,2]
[328603751,1717601449541,-1643.8,0.00023013,2]
[328603752,1717601449551,-500.0,0.00023013,2]
[328603753,1717601449561,-500.0,0.00023013,2]
[328603754,1717601449571,-2328.16,0.00023013,2]
[328603755,1717601449580,-500.0,0.00023013,2]
[328603756,1717601449590,-998.44,0.00023013,2]
[328603757,1717601449599,-500.0,0.00023013,2]
[328603758,1717601449608,-265.72,0.00023013,2]
[328603759,1717601449618,-416.85547306,0.00023013,2]
[328603760,1717601449628,-500.0,0.00023013,2]
[328603761,1717601449638,-500.0,0.00023013,2]
[328603762,1717601449648,-616.39,0.00023013,2]
[328603763,1717601449658,-500.0,0.00023013,2]
[328603764,1717601449668,-206.9,0.00023047,5]
[328603765,1717601449677,-151.0,0.00023047,5]
[328603766,1717601449686,-850.47710564,0.00023168,2]
[328603767,1717601449695,-219.97,0.00023287,2]
[328603768,1717601449704,-500.0,0.00023287,2]
[328603769,1717601449714,-500.0,0.00023287,2]
[328603770,1717601449723,-500.0,0.00023287,2]
[328603771,1717601449732,-500.0,0.00023287,2]
[328603772,1717601449744,-500.0,0.00023287,2]
[328603773,1717601449754,-500.0,0.00023287,2]
[328603774,1717601449763,-500.0,0.00023287,2]
[328603775,1717601449772,-500.0,0.00023287,2]
[328603776,1717601449781,-500.0,0.00023287,2]
[328603777,1717601449791,-500.0,0.00023287,2]
[328603778,1717601449804,-500.0,0.00023287,2]
[328603779,1717601449813,-500.0,0.00023287,2]
[328603780,1717601449823,-500.0,0.00023287,2]
[328603781,1717601449832,-500.0,0.00023287,2]
[328603782,1717601449841,-538.0,0.00023287,2]
[328603783,1717601449851,-500.0,0.00023287,2]
[328603784,1717601449860,-500.0,0.00023287,2]
[328603785,1717601449869,-500.0,0.00023287,2]
[328603786,1717601449879,-500.0,0.00023287,2]
[328603787,1717601449888,-500.0,0.00023287,2]
[328603788,1717601449898,-616.25,0.00023287,2]
[328603789,1717601449907,-811.82,0.00023287,2]
[328603790,1717601449916,-500.0,0.00023287,2]
[328603791,1717601449927,-1527.37,0.00023287,2]
[328603792,1717601449936,-500.0,0.00023287,2]
[328603793,1717601449946,-1110.0,0.00023287,2]
[328603794,1717601449955,-500.0,0.00023287,2]
[328603796,1717601449965,-930.09,0.00023287,2]
[328603798,1717601449974,-500.0,0.00023287,2]
[328603800,1717601449983,-500.0,0.00023287,2]
[328603802,1717601449993,-500.0,0.00023287,2]
[328603803,1717601450002,-1650.67,0.00023287,2]
[328603804,1717601450011,-1643.8,0.00023287,2]
[328603805,1717601450021,-500.0,0.00023287,2]
[328603806,1717601450030,-2328.16,0.00023287,2]
[328603809,1717601450041,-500.0,0.00023287,2]
[328603812,1717601450050,-998.44,0.00023287,2]
[328603815,1717601450060,-500.0,0.00023287,2]
[328603818,1717601450069,-500.0,0.00023287,2]
[328603821,1717601450078,-500.0,0.00023287,2]
[328603823,1717601450087,-616.39,0.00023287,2]
[328603826,1717601450097,-500.0,0.00023287,2]
[328603829,1717601450106,-166.666666,0.00023456,2]
[328603832,1717601450116,-500.0,0.0002356,2]
[328603833,1717601450126,-500.0,0.00023561,2]
[328603834,1717601450135,-500.0,0.00023561,2]
[328603835,1717601450144,-500.0,0.00023561,2]
[328603836,1717601450154,-500.0,0.00023561,2]
[328603837,1717601450164,-258.1,0.00023561,2]
[328603838,1717601450173,-585.27735547,0.00023561,2]
[328603839,1717601450183,-500.0,0.00023561,2]
[328603840,1717601450193,-500.0,0.00023561,2]
[328603841,1717601450202,-615.12,0.00023561,2]
[328603842,1717601450211,-500.0,0.00023561,2]
[328603843,1717601450221,-500.0,0.00023561,2]
[328603844,1717601450230,-578.05687796,0.00023561,2]
[328603845,1717601450239,-500.0,0.00023561,2]
[328603846,1717601450251,-500.0,0.00023561,2]
[328603847,1717601450260,-538.0,0.00023561,2]
[328603848,1717601450270,-500.0,0.00023561,2]
[328603849,1717601450279,-500.0,0.00023561,2]
[328603850,1717601450288,-500.0,0.00023561,2]
[328603851,1717601450297,-162.16,0.00023561,2]
[328603852,1717601450306,-500.0,0.00023561,2]
[328603853,1717601450315,-616.25,0.00023561,2]
[328603854,1717601450325,-811.82,0.00023561,2]
[328603855,1717601450333,-500.0,0.00023561,2]
[328603856,1717601450342,-1527.37,0.00023561,2]
[328603857,1717601450351,-554.51,0.00023561,2]
[328603858,1717601450360,-1110.0,0.00023561,2]
[328603859,1717601450369,-500.0,0.00023561,2]
[328603860,1717601450382,-930.09,0.00023561,2]
[328603861,1717601450391,-601.8,0.00023561,2]
[328603862,1717601450425,-247.37,0.00023561,2]
[328603864,1717601450434,-500.0,0.00023561,2]
[328603865,1717601450443,-1650.67,0.00023561,2]
[328603867,1717601450452,-1643.8,0.00023561,2]
[328603869,1717601450464,-500.0,0.00023561,2]
[328603871,1717601450473,-2328.16,0.00023561,2]
[328603873,1717601450483,-500.0,0.00023561,2]
[328603875,1717601450492,-998.44,0.00023561,2]
[328603877,1717601450502,-514.84,0.00023561,2]
[328603879,1717601450510,-500.0,0.00023561,2]
[328603881,1717601450519,-500.0,0.00023561,2]
[328603883,1717601450528,-616.39,0.00023561,2]
[328603885,1717601450537,-500.0,0.00023561,2]
[328603887,1717601450546,-206.9,0.00023727,5]
[328603888,1717601450556,-151.0,0.00023727,5]
[328603890,1717601450565,-500.0,0.00023834,2]
[328603892,1717601450575,-500.0,0.00023835,2]
[328603894,1717601450584,-500.0,0.00023835,2]
[328603896,1717601450593,-500.0,0.00023835,2]
[328603898,1717601450602,-500.0,0.00023835,2]
[328603900,1717601450611,-167.23,0.00023835,2]
[328603902,1717601450619,-500.0,0.00023835,2]
[328603904,1717601450629,-500.0,0.00023835,2]
[328603906,1717601450638,-500.0,0.00023835,2]
[328603908,1717601450647,-500.0,0.00023835,2]
[328603910,1717601450656,-538.0,0.00023835,2]
[328603912,1717601450665,-500.0,0.00023835,2]
[328603914,1717601450674,-595.17286309,0.00023835,2]
[328603916,1717601450684,-266.99,0.00023835,2]
[328603918,1717601450693,-500.0,0.00023835,2]
[328603920,1717601450702,-616.25,0.00023835,2]
[328603922,1717601450711,-811.82,0.00023835,2]
[328603924,1717601450720,-478.64,0.00023835,2]
[328603926,1717601450729,-1527.37,0.00023835,2]
[328603928,1717601450738,-1110.0,0.00023835,2]
[328603929,1717601450748,-500.0,0.00023835,2]
[328603931,1717601450756,-930.09,0.00023835,2]
[328603933,1717601450765,-500.0,0.00023835,2]
[328603935,1717601450774,-1650.67,0.00023835,2]
[328603937,1717601450783,-1643.8,0.00023835,2]
[328603939,1717601450793,-500.0,0.00023835,2]
[328603941,1717601450802,-2328.16,0.00023835,2]
[328603943,1717601450811,-500.0,0.00023835,2]
[328603945,1717601450821,-998.44,0.00023835,2]
[328603947,1717601450831,-500.0,0.00023835,2]
[328603948,1717601450840,-473.95,0.00023835,2]
[328603949,1717601450849,-616.39,0.00023835,2]
[328603950,1717601450858,-500.0,0.00023835,2]
[328603951,1717601450868,-204.7678726,0.00023863,2]
[328603952,1717601450877,-456.22912192,0.000239,2]
[328603953,1717601450887,-166.666666,0.00023969,2]
[328603954,1717601450896,-850.47710564,0.00024088,2]
[328603955,1717601450906,-402.77,0.00024109,2]
[328603956,1717601450915,-500.0,0.00024109,2]
[328603957,1717601450925,-500.0,0.00024109,2]
[328603958,1717601450934,-500.0,0.00024109,2]
[328603959,1717601450944,-500.0,0.00024109,2]
[328603960,1717601450953,-500.0,0.00024109,2]
[328603961,1717601450962,-500.0,0.00024109,2]
[328603962,1717601450971,-500.0,0.00024109,2]
[328603963,1717601450980,-538.0,0.00024109,2]
[328603964,1717601450990,-500.0,0.00024109,2]
[328603965,1717601450999,-500.0,0.00024109,2]
[328603966,1717601451008,-616.25,0.00024109,2]
[328603967,1717601451017,-811.82,0.00024109,2]
[328603968,1717601451026,-1527.37,0.00024109,2]
[328603969,1717601451035,-1110.0,0.00024109,2]
[328603970,1717601451045,-500.0,0.00024109,2]
[328603971,1717601451054,-930.09,0.00024109,2]
[328603972,1717601451063,-500.0,0.00024109,2]
[328603973,1717601451072,-1650.67,0.00024109,2]
[328603974,1717601451081,-1643.8,0.00024109,2]
[328603975,1717601451091,-305.41392081,0.00024109,2]
[328603976,1717601451102,-2328.16,0.00024109,2]
[328603977,1717601451112,-500.0,0.00024109,2]
[328603978,1717601451123,-998.44,0.00024109,2]
[328603979,1717601451133,-500.0,0.00024109,2]
[328603980,1717601451143,-616.39,0.00024109,2]
[328603981,1717601451153,-631.58,0.00024109,2]
[328603982,1717601451163,-160.0,0.00024175,2]
[328603983,1717601451172,-500.0,0.00024209,2]
[328603984,1717601451182,-500.0,0.00024209,2]
[328603985,1717601451191,-500.0,0.00024209,2]
[328603986,1717601451200,-96810.59103673,0.0002421,30]
[328603988,1717601451210,-500.0,0.00024383,2]
[328603990,1717601451219,-500.0,0.00024383,2]
[328603992,1717601451229,-209.05,0.00024383,2]
[328603993,1717601451238,-500.0,0.00024383,2]
[328603994,1717601451250,-500.0,0.00024383,2]
[328603995,1717601451260,-367.97722757,0.00024383,2]
[328603996,1717601451269,-500.0,0.00024383,2]
[328603997,1717601451279,-538.0,0.00024383,2]
[328603998,1717601451288,-500.0,0.00024383,2]
[328603999,1717601451297,-500.0,0.00024383,2]
[328604000,1717601451307,-616.25,0.00024383,2]
[328604001,1717601451316,-811.82,0.00024383,2]
[328604002,1717601451326,-1527.37,0.00024383,2]
[328604003,1717601451335,-1110.0,0.00024383,2]
[328604004,1717601451345,-538.31,0.00024383,2]
[328604005,1717601451354,-930.09,0.00024383,2]
[328604006,1717601451364,-500.0,0.00024383,2]
[328604007,1717601451373,-1650.67,0.00024383,2]
[328604008,1717601451384,-1643.8,0.00024383,2]
[328604009,1717601451396,-2328.16,0.00024383,2]
[328604010,1717601451405,-500.0,0.00024383,2]
[328604011,1717601451415,-998.44,0.00024383,2]
[328604012,1717601451424,-500.0,0.00024383,2]
[328604013,1717601451434,-616.39,0.00024383,2]
[328604014,1717601451444,-762.45939015,0.000244,2]
[328604015,1717601451453,-206.9,0.00024408,7]
[328604016,1717601451465,-151.0,0.00024408,7]
[328604017,1717601451475,-153.0,0.00024411,2]
[328604018,1717601451485,-153.0,0.00024411,2]
[328604019,1717601451496,-153.0,0.00024411,2]
[328604020,1717601451506,-153.0,0.00024411,2]
[328604021,1717601451515,-166.666666,0.00024482,2]
[328604022,1717601451525,-500.0,0.00024499,7]
[328604023,1717601451534,-596.4,0.00024499,7]
[328604025,1717601451544,-1099.91705711,0.00024655,2]
[328604027,1717601451553,-309.92252015,0.00024656,2]
[328604029,1717601451562,-350.98,0.00024656,2]
[328604031,1717601451571,-500.0,0.00024657,2]
[328604033,1717601451580,-500.0,0.00024657,2]
[328604034,1717601451590,-500.0,0.00024657,2]
[328604035,1717601451599,-500.0,0.00024657,2]
[328604036,1717601451609,-500.0,0.00024657,2]
[328604037,1717601451619,-538.0,0.00024657,2]
[328604038,1717601451629,-500.0,0.00024657,2]
[328604039,1717601451638,-500.0,0.00024657,2]
[328604040,1717601451647,-616.25,0.00024657,2]
[328604041,1717601451658,-811.82,0.00024657,2]
[328604043,1717601451667,-1527.37,0.00024657,2]
[328604044,1717601451677,-1110.0,0.00024657,2]
[328604045,1717601451686,-930.09,0.00024657,2]
[328604047,1717601451696,-500.0,0.00024657,2]
[328604048,1717601451705,-1650.67,0.00024657,2]
[328604050,1717601451714,-1643.8,0.00024657,2]
[328604051,1717601451724,-2328.16,0.00024657,2]
[328604052,1717601451733,-500.0,0.00024657,2]
[328604054,1717601451744,-998.44,0.00024657,2]
[328604055,1717601451754,-500.0,0.00024657,2]
[328604057,1717601451763,-616.39,0.00024657,2]
[328604058,1717601451773,-320.0,0.00024723,2]
[328604059,1717601451783,-500.0,0.00024931,6]
[328604060,1717601451792,-500.0,0.00024931,6]
[328604061,1717601451802,-500.0,0.00024931,6]
[328604062,1717601451812,-500.0,0.00024931,6]
[328604063,1717601451822,-500.0,0.00024931,6]
[328604064,1717601451831,-538.0,0.00024931,6]
[328604065,1717601451840,-500.0,0.00024931,6]
[328604066,1717601451850,-578.7,0.00024931,6]
[328604067,1717601451860,-616.25,0.00024931,6]
[328604068,1717601451869,-811.82,0.00024931,6]
[328604069,1717601451879,-1527.37,0.00024931,6]
[328604070,1717601451888,-1110.0,0.00024931,6]
[328604071,1717601451898,-930.09,0.00024931,6]
[328604072,1717601451907,-630.79,0.00024931,6]
[328604073,1717601451917,-1650.67,0.00024931,6]
[328604074,1717601451926,-1643.8,0.00024931,6]
[328604075,1717601451936,-2328.16,0.00024931,6]
[328604076,1717601451945,-500.0,0.00024931,6]
[328604077,1717601451955,-998.44,0.00024931,6]
[328604078,1717601451965,-500.0,0.00024931,6]
[328604079,1717601451975,-616.39,0.00024931,6]
[328604080,1717601451984,-153.0,0.00024959,2]
[328604081,1717601451994,-2099.05864986,0.00024998,2]
[328604082,1717601452003,-187.40579075,0.00024998,2]
[328604083,1717601452013,-157.45528372,0.00024998,2]
[328604084,1717601452022,-6889.44950663,0.00024998,2]
[328604085,1717601452032,-1901.95956528,0.00024998,2]
[328604086,1717601452042,-285.64268325,0.00024998,2]
[328604087,1717601452051,-154.98450155,0.00024998,2]
[328604088,1717601452060,-1602.29630314,0.00024999,2]
[328604089,1717601452072,-52379.23015878,0.00025,2]
[328604090,1717601452082,-3989.07453341,0.00025,2]
[328604091,1717601452092,-155.0,0.00025,2]
[328604092,1717601452102,-401.85050272,0.00025,2]
[328604093,1717601452111,-2117.32006816,0.00025,2]
[328604094,1717601452120,-225.02004134,0.00025,2]
[328604095,1717601452130,-471.86986171,0.00025,2]
[328604096,1717601452140,-286.47075578,0.00025,2]
[328604097,1717601452149,-850.47710564,0.00025009,2]
[328604098,1717601452158,-206.9,0.00025088,7]
[328604099,1717601452168,-151.0,0.00025088,7]
[328604100,1717601452177,-332.63635549,0.00025205,6]
[328604101,1717601452187,-500.0,0.00025205,6]
[328604102,1717601452197,-500.0,0.00025205,6]
[328604103,1717601452208,-500.0,0.00025205,6]
[328604104,1717601452217,-500.0,0.00025205,6]
[328604105,1717601452227,-538.0,0.00025205,6]
[328604106,1717601452237,-500.0,0.00025205,6]
[328604107,1717601452249,-616.25,0.00025205,6]
[328604108,1717601452261,-811.82,0.00025205,6]
[328604109,1717601452271,-1527.37,0.00025205,6]
[328604110,1717601452280,-1110.0,0.00025205,6]
[328604111,1717601452290,-930.09,0.00025205,6]
[328604112,1717601452300,-1650.67,0.00025205,6]
[328604113,1717601452310,-1643.8,0.00025205,6]
[328604114,1717601452319,-2328.16,0.00025205,6]
[328604115,1717601452329,-500.0,0.00025205,6]
[328604116,1717601452339,-998.44,0.00025205,6]
[328604117,1717601452348,-500.0,0.00025205,6]
[328604118,1717601452358,-616.39,0.00025205,6]
[328604119,1717601452367,-963.29727706,0.00025223,2]
[328604120,1717601452378,-150.96980604,0.00025277,2]
[328604121,1717601452393,-151.0,0.0002533,10]
[328604122,1717601452403,-270.0,0.000254,2]
[328604123,1717601452413,-540.0,0.000254,2]
[328604124,1717601452427,-540.0,0.000254,2]
[328604125,1717601452436,-160.0,0.000254,2]
[328604126,1717601452446,-300.0,0.000254,2]
[328604127,1717601452457,-245765.0,0.0002543,7]
[328604128,1717601452467,-2111.50910737,0.00025453,2]
[328604129,1717601452477,-691.0,0.0002547,35]
[328604130,1717601452486,-2639.9956011,0.00025478,2]
[328604131,1717601452497,-302.88682023,0.00025478,2]
[328604132,1717601452506,-156.37027356,0.00025478,2]
[328604133,1717601452516,-302.62738167,0.00025478,2]
[328604134,1717601452526,-155.37223594,0.00025478,2]
[328604135,1717601452535,-2683.84947927,0.00025478,2]
[328604136,1717601452545,-317.05212667,0.00025478,2]
[328604137,1717601452555,-4309.24514339,0.00025478,2]
[328604138,1717601452565,-1499.31190813,0.00025478,2]
[328604139,1717601452573,-156.92310031,0.00025478,2]
[328604140,1717601452583,-721.35032538,0.00025478,2]
[328604141,1717601452592,-282.07383914,0.00025478,2]
[328604142,1717601452603,-7335.37904907,0.00025478,2]
[328604143,1717601452613,-187.15378643,0.00025478,2]
[328604144,1717601452622,-1279.44795953,0.00025478,2]
[328604145,1717601452632,-1314.14646434,0.00025478,2]
[328604146,1717601452642,-155.02634884,0.00025478,2]
[328604147,1717601452653,-430.70957348,0.00025478,2]
[328604148,1717601452663,-624.16065565,0.00025478,2]
[328604149,1717601452672,-606.170302,0.00025478,2]
[328604150,1717601452683,-1283.07379289,0.00025478,2]
[328604151,1717601452693,-181.0254006,0.00025478,2]
[328604152,1717601452702,-303.8993979,0.00025478,2]
[328604153,1717601452712,-155.06050411,0.00025478,2]
[328604154,1717601452722,-254.51922925,0.00025478,2]
[328604155,1717601452732,-155.27700761,0.00025478,2]
[328604156,1717601452743,-500.0,0.00025479,6]
[328604157,1717601452753,-500.0,0.00025479,6]
[328604158,1717601452763,-500.0,0.00025479,6]
[328604159,1717601452774,-500.0,0.00025479,6]
[328604160,1717601452783,-538.0,0.00025479,6]
[328604161,1717601452793,-500.0,0.00025479,6]
[328604162,1717601452804,-616.25,0.00025479,6]
[328604163,1717601452815,-811.82,0.00025479,6]
[328604164,1717601452824,-1527.37,0.00025479,6]
[328604165,1717601452834,-1110.0,0.00025479,6]
[328604166,1717601452844,-930.09,0.00025479,6]
[328604167,1717601452854,-1650.67,0.00025479,6]
[328604168,1717601452864,-1643.8,0.00025479,6]
[328604169,1717601452874,-2328.16,0.00025479,6]
[328604170,1717601452883,-500.0,0.00025479,6]
[328604171,1717601452893,-998.44,0.00025479,6]
[328604172,1717601452904,-500.0,0.00025479,6]
[328604173,1717601452914,-616.39,0.00025479,6]
[328604174,1717601452924,-185468.0,0.0002548,5]
[328604175,1717601452936,-691.0,0.0002548,35]
[328604176,1717601452946,-135456.0,0.00025482,6]
[328604177,1717601452956,-691.0,0.0002549,35]
[328604178,1717601452966,-190.22639259,0.00025498,2]
[328604179,1717601452976,-194.86360978,0.00025498,2]
[328604180,1717601452985,-155.23305718,0.00025498,2]
[328604181,1717601452995,-1350.18168452,0.00025498,2]
[328604182,1717601453005,-6740.67305763,0.00025499,2]